fUSD/lending_fUSD_20250103
["ID","MTS","AMOUNT","RATE_DAILY","PERIOD"]
[347561106,1735919437994,-500.0,9.592e-05,2]
[347561107,1735919438004,-517.36,9.592e-05,2]
[347561108,1735919438014,-500.0,9.592e-05,2]
[347561109,1735919438023,-500.0,9.592e-05,2]
[347561110,1735919438033,-500.0,9.592e-05,2]
[347561111,1735919438043,-500.0,9.592e-05,2]
[347561112,1735919438052,-500.0,9.592e-05,2]
[347561113,1735919438062,-500.0,9.592e-05,2]
[347561114,1735919438074,-500.0,9.592e-05,2]
[347561115,1735919438083,-500.0,9.592e-05,2]
[347561116,1735919438093,-500.0,9.592e-05,2]
[347561117,1735919438103,-380.24229189,9.592e-05,2]
[347561118,1735919438113,-500.0,9.592e-05,2]
[347561119,1735919438123,-401.71,9.592e-05,2]
[347561120,1735919438133,-500.0,9.592e-05,2]
[347561121,1735919438143,-998.79,9.592e-05,2]
[347561122,1735919438153,-608.94,9.592e-05,2]
[347561123,1735919438162,-500.0,9.592e-05,2]
[347561124,1735919438172,-379.03,9.592e-05,2]
[347561125,1735919438182,-500.0,9.592e-05,2]
[347561126,1735919438191,-500.0,9.592e-05,2]
[347561127,1735919438201,-500.0,9.592e-05,2]
[347561128,1735919438210,-500.0,9.592e-05,2]
[347561129,1735919438220,-500.0,9.592e-05,2]
[347561130,1735919438230,-500.0,9.592e-05,2]
[347561131,1735919438239,-500.0,9.592e-05,2]
[347561132,1735919438250,-500.0,9.592e-05,2]
[347561133,1735919438260,-500.0,9.592e-05,2]
[347561134,1735919438269,-380.47606725,9.592e-05,2]
[347561135,1735919438280,-500.0,9.592e-05,2]
[347561136,1735919438290,-500.0,9.592e-05,2]
[347561137,1735919438299,-500.0,9.592e-05,2]
[347561138,1735919438311,-265.3792708,9.592e-05,2]
[347561140,1735919438322,-500.0,9.592e-05,2]
[347561142,1735919438332,-1103.91,9.592e-05,2]
[347561144,1735919438341,-567.84,9.592e-05,2]
[347561146,1735919438352,-618.93,9.592e-05,2]
[347561148,1735919438363,-1708.05,9.592e-05,2]
[347561150,1735919438376,-844.94,9.592e-05,2]
[347561152,1735919438387,-500.0,9.592e-05,2]
[347561154,1735919438397,-500.0,9.592e-05,2]
[347561156,1735919438406,-1117.93,9.592e-05,2]
[347561158,1735919438416,-3213.16,9.592e-05,2]
[347561160,1735919438425,-500.0,9.592e-05,2]
[347561162,1735919438435,-500.0,9.592e-05,2]
[347561163,1735919438445,-500.0,9.592e-05,2]
[347561165,1735919438455,-500.0,9.592e-05,2]
[347561167,1735919438464,-500.0,9.592e-05,2]
[347561169,1735919438474,-500.0,9.592e-05,2]
[347561171,1735919438484,-500.0,9.592e-05,2]
[347561173,1735919438493,-839.98,9.592e-05,2]
[347561175,1735919438503,-500.0,9.592e-05,2]
[347561176,1735919438512,-500.0,9.592e-05,2]
[347561177,1735919438521,-500.0,9.592e-05,2]
[347561178,1735919438531,-500.0,9.592e-05,2]
[347561179,1735919438541,-500.0,9.592e-05,2]
[347561180,1735919438550,-500.0,9.592e-05,2]
[347561181,1735919438559,-302.64987305,9.592e-05,2]
[347561182,1735919438571,-682.48,9.592e-05,2]
[347561183,1735919438581,-500.0,9.592e-05,2]
[347561184,1735919438591,-500.0,9.592e-05,2]
[347561185,1735919438601,-500.0,9.592e-05,2]
[347561186,1735919438610,-500.0,9.592e-05,2]
[347561187,1735919438620,-500.0,9.592e-05,2]
[347561188,1735919438629,-500.0,9.592e-05,2]
[347561189,1735919438639,-1341.85,9.592e-05,2]
[347561191,1735919438648,-500.0,9.592e-05,2]
[347561193,1735919438658,-274.79969192,9.592e-05,2]
[347561195,1735919438667,-1839.57,9.592e-05,2]
[347561197,1735919438676,-558.15,9.592e-05,2]
[347561199,1735919438685,-500.0,9.592e-05,2]
[347561221,1735919438871,-500.0,9.592e-05,2]
[347561223,1735919438881,-500.0,9.592e-05,2]
[347561225,1735919438891,-712.41,9.592e-05,2]
[347561227,1735919438900,-1970.07,9.592e-05,2]
[347561229,1735919438910,-500.0,9.592e-05,2]
[347561231,1735919438920,-500.0,9.592e-05,2]
[347561233,1735919438929,-793.59,9.592e-05,2]
[347561235,1735919438939,-500.0,9.592e-05,2]
[347561237,1735919438948,-1135.87,9.592e-05,2]
[347561239,1735919438957,-500.0,9.592e-05,2]
[347561240,1735919438968,-500.0,9.592e-05,2]
[347561242,1735919438978,-916.65,9.592e-05,2]
[347561244,1735919438987,-500.0,9.592e-05,2]
[347561247,1735919438997,-500.0,9.592e-05,2]
[347561248,1735919439006,-500.0,9.592e-05,2]
[347561251,1735919439016,-500.0,9.592e-05,2]
[347561253,1735919439025,-500.0,9.592e-05,2]
[347561255,1735919439034,-500.0,9.592e-05,2]
[347561256,1735919439044,-500.0,9.592e-05,2]
[347561257,1735919439053,-500.0,9.592e-05,2]
[347561258,1735919439064,-2628.99,9.592e-05,2]
[347561259,1735919439074,-500.0,9.592e-05,2]
[347561260,1735919439084,-2070.37,9.592e-05,2]
[347561261,1735919439094,-500.0,9.592e-05,2]
[347561262,1735919439105,-741.61,9.592e-05,2]
[347561263,1735919439117,-500.0,9.592e-05,2]
[347561264,1735919439126,-597.93,9.592e-05,2]
[347561265,1735919439136,-2265.52,9.592e-05,2]
[347561266,1735919439145,-500.0,9.592e-05,2]
[347561267,1735919439155,-500.0,9.592e-05,2]
[347561268,1735919439164,-349.24420754,9.592e-05,2]
[347561269,1735919439175,-500.0,9.593e-05,2]
[347561270,1735919439184,-500.0,9.593e-05,2]
[347561271,1735919439194,-500.0,9.593e-05,2]
[347561272,1735919439205,-500.0,9.593e-05,2]
[347561274,1735919439214,-500.0,9.593e-05,2]
[347561276,1735919439225,-2098.39,9.593e-05,2]
[347561278,1735919439235,-500.0,9.593e-05,2]
[347561280,1735919439244,-500.0,9.593e-05,2]
[347561282,1735919439254,-1320.51,9.593e-05,2]
[347561284,1735919439264,-500.0,9.593e-05,2]
[347561286,1735919439274,-500.0,9.593e-05,2]
[347561288,1735919439283,-500.0,9.593e-05,2]
[347561290,1735919439296,-4218.15,9.593e-05,2]
[347561292,1735919439306,-500.0,9.593e-05,2]
[347561294,1735919439318,-500.0,9.593e-05,2]
[347561296,1735919439327,-500.0,9.593e-05,2]
[347561298,1735919439338,-500.0,9.593e-05,2]
[347561300,1735919439347,-4190.93,9.593e-05,2]
[347561302,1735919439357,-500.0,9.593e-05,2]
[347561304,1735919439367,-393.17664436,9.593e-05,2]
[347561306,1735919439376,-500.0,9.593e-05,2]
[347561308,1735919439387,-500.0,9.593e-05,2]
[347561310,1735919439396,-1247.97,9.593e-05,2]
[347561311,1735919439406,-500.0,9.593e-05,2]
[347561314,1735919439416,-500.0,9.593e-05,2]
[347561315,1735919439426,-711.03,9.593e-05,2]
[347561317,1735919439437,-500.0,9.593e-05,2]
[347561319,1735919439447,-3907.52,9.593e-05,2]
[347561321,1735919439456,-500.0,9.593e-05,2]
[347561323,1735919439466,-500.0,9.593e-05,2]
[347561325,1735919439476,-500.0,9.593e-05,2]
[347561327,1735919439486,-181.78577974,9.593e-05,2]
[347561329,1735919439495,-500.0,9.593e-05,2]
[347561331,1735919439505,-500.0,9.593e-05,2]
[347561333,1735919439514,-500.0,9.593e-05,2]
[347561335,1735919439524,-500.0,9.593e-05,2]
[347561337,1735919439534,-500.0,9.593e-05,2]
[347561339,1735919439543,-500.0,9.593e-05,2]
[347561341,1735919439553,-500.0,9.593e-05,2]
[347561343,1735919439565,-500.0,9.593e-05,2]
[347561345,1735919439574,-151.43996141,9.593e-05,2]
[347561347,1735919439584,-500.0,9.593e-05,2]
[347561349,1735919439593,-500.0,9.593e-05,2]
[347561351,1735919439603,-500.0,9.593e-05,2]
[347561353,1735919439613,-500.0,9.593e-05,2]
[347561355,1735919439622,-500.0,9.593e-05,2]
[347561357,1735919439632,-500.0,9.593e-05,2]
[347561359,1735919439641,-500.0,9.593e-05,2]
[347561361,1735919439651,-500.0,9.593e-05,2]
[347561363,1735919439660,-500.0,9.593e-05,2]
[347561366,1735919439669,-500.0,9.593e-05,2]
[347561368,1735919439679,-500.0,9.593e-05,2]
[347561370,1735919439688,-634.74,9.593e-05,2]
[347561372,1735919439697,-500.0,9.593e-05,2]
[347561374,1735919439707,-598.30490611,9.593e-05,2]
[347561376,1735919439717,-500.0,9.593e-05,2]
[347561378,1735919439728,-500.0,9.593e-05,2]
[347561380,1735919439738,-500.0,9.593e-05,2]
[347561382,1735919439747,-500.0,9.593e-05,2]
[347561384,1735919439757,-500.0,9.593e-05,2]
[347561386,1735919439768,-500.0,9.593e-05,2]
[347561388,1735919439777,-500.0,9.593e-05,2]
[347561390,1735919439787,-500.0,9.593e-05,2]
[347561392,1735919439796,-744.75,9.593e-05,2]
[347561394,1735919439805,-500.0,9.593e-05,2]
[347561396,1735919439817,-500.0,9.593e-05,2]
[347561398,1735919439826,-500.0,9.593e-05,2]
[347561401,1735919439835,-500.0,9.593e-05,2]
[347561404,1735919439846,-500.0,9.593e-05,2]
[347561408,1735919439855,-604.13,9.593e-05,2]
[347561410,1735919439864,-500.0,9.593e-05,2]
[347561414,1735919439874,-500.0,9.593e-05,2]
[347561418,1735919439883,-506.64,9.593e-05,2]
[347561420,1735919439893,-500.0,9.593e-05,2]
[347561422,1735919439903,-500.0,9.593e-05,2]
[347561424,1735919439913,-500.0,9.593e-05,2]
[347561426,1735919439923,-500.0,9.593e-05,2]
[347561428,1735919439933,-500.0,9.593e-05,2]
[347561430,1735919439942,-500.0,9.593e-05,2]
[347561432,1735919439951,-500.0,9.593e-05,2]
[347561434,1735919439961,-500.0,9.593e-05,2]
[347561436,1735919439970,-500.0,9.593e-05,2]
[347561438,1735919439980,-500.0,9.593e-05,2]
[347561439,1735919439989,-500.0,9.593e-05,2]
[347561441,1735919439999,-811.8,9.593e-05,2]
[347561444,1735919440009,-500.0,9.593e-05,2]
[347561446,1735919440018,-500.0,9.593e-05,2]
[347561448,1735919440029,-500.0,9.593e-05,2]
[347561450,1735919440039,-500.0,9.593e-05,2]
[347561452,1735919440049,-734.49,9.593e-05,2]
[347561454,1735919440058,-500.0,9.593e-05,2]
[347561455,1735919440072,-500.0,9.593e-05,2]
[347561456,1735919440082,-500.0,9.593e-05,2]
[347561457,1735919440092,-500.0,9.593e-05,2]
[347561458,1735919440102,-500.0,9.593e-05,2]
[347561459,1735919440111,-809.26,9.593e-05,2]
[347561460,1735919440121,-1045.95,9.593e-05,2]
[347561461,1735919440131,-500.0,9.593e-05,2]
[347561462,1735919440140,-500.0,9.593e-05,2]
[347561463,1735919440149,-500.0,9.593e-05,2]
[347561464,1735919440159,-500.0,9.593e-05,2]
[347561465,1735919440169,-500.0,9.593e-05,2]
[347561466,1735919440179,-500.0,9.593e-05,2]
[347561467,1735919440189,-1478.74,9.593e-05,2]
[347561469,1735919440200,-500.0,9.593e-05,2]
[347561471,1735919440210,-500.0,9.593e-05,2]
[347561473,1735919440219,-500.0,9.593e-05,2]
[347561475,1735919440229,-500.0,9.593e-05,2]
[347561477,1735919440238,-190.17781564,9.593e-05,2]
[347561479,1735919440248,-626.36,9.593e-05,2]
[347561481,1735919440257,-951.82,9.593e-05,2]
[347561483,1735919440267,-500.0,9.593e-05,2]
[347561485,1735919440276,-500.0,9.593e-05,2]
[347561487,1735919440287,-500.0,9.593e-05,2]
[347561489,1735919440298,-947.32,9.593e-05,2]
[347561491,1735919440310,-929.15,9.593e-05,2]
[347561493,1735919440322,-500.0,9.593e-05,2]
[347561495,1735919440332,-521.98,9.593e-05,2]
[347561497,1735919440341,-500.0,9.593e-05,2]
[347561499,1735919440351,-500.0,9.593e-05,2]
[347561501,1735919440361,-500.0,9.593e-05,2]
[347561502,1735919440371,-500.0,9.593e-05,2]
[347561504,1735919440382,-500.0,9.593e-05,2]
[347561506,1735919440392,-500.0,9.593e-05,2]
[347561508,1735919440401,-500.0,9.593e-05,2]
[347561511,1735919440411,-3875.94,9.593e-05,2]
[347561512,1735919440421,-500.0,9.593e-05,2]
[347561514,1735919440431,-866.91,9.593e-05,2]
[347561516,1735919440440,-500.0,9.593e-05,2]
[347561519,1735919440450,-622.6,9.593e-05,2]
[347561520,1735919440459,-1185.4,9.593e-05,2]
[347561523,1735919440470,-610.505315,9.593e-05,2]
[347561525,1735919440479,-1073.49,9.593e-05,2]
[347561527,1735919440489,-500.0,9.593e-05,2]
[347561529,1735919440499,-935.42,9.593e-05,2]
[347561530,1735919440508,-1753.28,9.593e-05,2]
[347561532,1735919440517,-500.0,9.593e-05,2]
[347561535,1735919440527,-500.0,9.593e-05,2]
[347561537,1735919440537,-500.0,9.593e-05,2]
[347561539,1735919440547,-1140.28,9.593e-05,2]
[347561541,1735919440556,-500.0,9.593e-05,2]
[347561543,1735919440566,-500.0,9.593e-05,2]
[347561545,1735919440576,-985.48,9.593e-05,2]
[347561546,1735919440585,-2049.49,9.593e-05,2]
[347561549,1735919440595,-500.0,9.594e-05,2]
[347561551,1735919440605,-1331.87,9.594e-05,2]
[347561553,1735919440614,-500.0,9.594e-05,2]
[347561555,1735919440624,-2635.42,9.594e-05,2]
[347561557,1735919440634,-1927.72,9.594e-05,2]
[347561559,1735919440643,-500.0,9.594e-05,2]
[347561561,1735919440653,-1038.27,9.594e-05,2]
[347561563,1735919440663,-938.89,9.594e-05,2]
[347561565,1735919440672,-3500.0,9.6e-05,3]
[347561567,1735919440681,-150.0,9.616e-05,2]
[347561569,1735919440691,-150.0,9.628e-05,2]
[347561571,1735919440700,-151.3,9.647e-05,2]
[347561573,1735919440709,-151.16,9.647e-05,2]
[347561575,1735919440719,-152.01,9.647e-05,2]
[347561577,1735919440728,-152.09,9.647e-05,2]
[347561579,1735919440738,-152.62,9.647e-05,2]
[347561581,1735919440748,-150.46,9.647e-05,2]
[347561583,1735919440757,-150.0,9.675e-05,2]
[347561585,1735919440767,-166.0,9.687e-05,2]
[347561587,1735919440776,-166.0,9.687e-05,2]
[347561589,1735919440785,-1933.51,9.696e-05,2]
[347561591,1735919440795,-769.37,9.696e-05,2]
[347561593,1735919440804,-573.75,9.696e-05,2]
[347561595,1735919440817,-500.0,9.696e-05,2]
[347561597,1735919440826,-771.96,9.696e-05,2]
[347561599,1735919440836,-1538.1,9.696e-05,2]
[347561601,1735919440845,-2506.14,9.696e-05,2]
[347561603,1735919440855,-2816.21,9.696e-05,2]
[347561605,1735919440865,-3188.74,9.696e-05,2]
[347561607,1735919440874,-500.0,9.696e-05,2]
[347561609,1735919440884,-539.78,9.696e-05,2]
[347561611,1735919440893,-828.09,9.696e-05,2]
[347561613,1735919440902,-7000.0,9.7e-05,3]
[347561615,1735919440912,-151.33,9.719e-05,2]
[347561617,1735919440921,-150.0,9.722e-05,2]
[347561619,1735919440931,-150.0,9.722e-05,2]
[347561621,1735919440940,-150.0,9.74e-05,2]
[347561623,1735919440949,-500.0,9.767e-05,2]
[347561625,1735919440959,-500.0,9.767e-05,2]
[347561627,1735919440968,-545.77369618,9.767e-05,2]
[347561629,1735919440977,-133893.0634,9.768e-05,2]
[347561631,1735919440987,-19953.1567,9.768e-05,2]
[347561633,1735919440996,-150.0,9.769e-05,2]
[347561635,1735919441007,-500.0,9.779e-05,2]
[347561637,1735919441016,-500.0,9.779e-05,2]
[347561639,1735919441025,-1266.0,9.794e-05,2]
[347561641,1735919441035,-2011.0,9.794e-05,2]
[347561643,1735919441044,-150.0,9.794e-05,2]
[347561645,1735919441054,-634.0,9.794e-05,2]
[347561647,1735919441063,-1859.0,9.794e-05,2]
[347561649,1735919441073,-3774.0,9.794e-05,2]
[347561651,1735919441084,-918.0,9.794e-05,2]
[347561653,1735919441094,-819.0,9.794e-05,2]
[347561655,1735919441104,-3721.0,9.794e-05,2]
[347561657,1735919441114,-537.205,9.794e-05,2]
[347561659,1735919441123,-3893.0,9.794e-05,2]
[347561661,1735919441133,-150.0,9.794e-05,2]
[347561663,1735919441142,-6715.114,9.794e-05,2]
[347561665,1735919441151,-500.0,9.796e-05,2]
[347561667,1735919441161,-2925.8,9.796e-05,2]
[347561669,1735919441171,-500.0,9.796e-05,2]
[347561671,1735919441180,-500.0,9.796e-05,2]
[347561673,1735919441189,-977.44,9.796e-05,2]
[347561675,1735919441199,-500.0,9.797e-05,2]
[347561677,1735919441208,-666.7,9.797e-05,2]
[347561679,1735919441218,-973.96,9.797e-05,2]
[347561681,1735919441228,-541.31,9.797e-05,2]
[347561683,1735919441237,-1228.89,9.797e-05,2]
[347561685,1735919441247,-1000.0,9.797e-05,2]
[347561687,1735919441256,-542.1,9.797e-05,2]
[347561689,1735919441265,-500.0,9.797e-05,2]
[347561691,1735919441275,-1934.6,9.797e-05,2]
[347561693,1735919441284,-882.89,9.797e-05,2]
[347561695,1735919441295,-1532.55,9.797e-05,2]
[347561702,1735919441305,-1637.47,9.797e-05,2]
[347561704,1735919441368,-10500.0,9.8e-05,3]
[347561706,1735919441378,-150.0,9.816e-05,2]
[347561708,1735919441388,-499.23368948,9.863e-05,2]
[347561710,1735919441397,-500.0,9.863e-05,2]
[347561712,1735919441407,-160.23066452,9.863e-05,2]
[347561714,1735919441416,-150.0,9.863e-05,2]
[347561715,1735919441426,-150.0,9.863e-05,2]
[347561717,1735919441435,-150.0,9.863e-05,2]
[347561719,1735919441444,-22004.0,9.863e-05,2]
[347561722,1735919441454,-500.0,9.865e-05,2]
[347561723,1735919441463,-1031.91,9.865e-05,2]
[347561725,1735919441472,-1359.78,9.865e-05,2]
[347561727,1735919441482,-726.96,9.865e-05,2]
[347561730,1735919441491,-1334.93,9.865e-05,2]
[347561732,1735919441500,-500.0,9.865e-05,2]
[347561734,1735919441510,-2357.01,9.865e-05,2]
[347561736,1735919441520,-500.0,9.865e-05,2]
[347561737,1735919441529,-590.05,9.865e-05,2]
[347561740,1735919441538,-500.0,9.865e-05,2]
[347561742,1735919441548,-500.0,9.865e-05,2]
[347561743,1735919441556,-500.0,9.865e-05,2]
[347561745,1735919441567,-500.0,9.865e-05,2]
[347561747,1735919441576,-1740.81,9.865e-05,2]
[347561749,1735919441585,-500.0,9.866e-05,2]
[347561751,1735919441595,-500.0,9.866e-05,2]
[347561753,1735919441604,-500.0,9.866e-05,2]
[347561755,1735919441613,-500.0,9.866e-05,2]
[347561757,1735919441622,-500.0,9.866e-05,2]
[347561759,1735919441632,-500.0,9.866e-05,2]
[347561761,1735919441641,-500.0,9.866e-05,2]
[347561763,1735919441650,-589.80688888,9.866e-05,2]
[347561765,1735919441660,-500.0,9.866e-05,2]
[347561767,1735919441669,-500.0,9.866e-05,2]
[347561768,1735919441679,-500.0,9.866e-05,2]
[347561770,1735919441688,-500.0,9.866e-05,2]
[347561772,1735919441697,-500.0,9.866e-05,2]
[347561774,1735919441707,-500.0,9.866e-05,2]
[347561776,1735919441716,-500.0,9.866e-05,2]
[347561778,1735919441725,-500.0,9.866e-05,2]
[347561780,1735919441734,-500.0,9.866e-05,2]
[347561782,1735919441744,-500.0,9.866e-05,2]
[347561784,1735919441753,-500.0,9.866e-05,2]
[347561785,1735919441762,-500.0,9.866e-05,2]
[347561787,1735919441771,-500.0,9.866e-05,2]
[347561788,1735919441781,-500.0,9.866e-05,2]
[347561789,1735919441790,-500.0,9.866e-05,2]
[347561790,1735919441799,-500.0,9.866e-05,2]
[347561791,1735919441808,-500.0,9.866e-05,2]
[347561792,1735919441818,-500.0,9.866e-05,2]
[347561793,1735919441827,-539.86,9.866e-05,2]
[347561794,1735919441837,-517.36,9.866e-05,2]
[347561795,1735919441846,-500.0,9.866e-05,2]
[347561796,1735919441855,-500.0,9.866e-05,2]
[347561797,1735919441865,-500.0,9.866e-05,2]
[347561798,1735919441875,-500.0,9.866e-05,2]
[347561799,1735919441884,-500.0,9.866e-05,2]
[347561801,1735919441893,-500.0,9.866e-05,2]
[347561802,1735919441902,-500.0,9.866e-05,2]
[347561803,1735919441911,-305.49416327,9.866e-05,2]
[347561804,1735919441920,-219.94,9.866e-05,2]
[347561805,1735919441929,-500.0,9.866e-05,2]
[347561806,1735919441938,-500.0,9.866e-05,2]
[347561807,1735919441947,-998.79,9.866e-05,2]
[347561808,1735919441957,-500.0,9.866e-05,2]
[347561809,1735919441966,-500.0,9.866e-05,2]
[347561810,1735919441976,-500.0,9.866e-05,2]
[347561811,1735919441985,-500.0,9.866e-05,2]
[347561812,1735919441994,-500.0,9.866e-05,2]
[347561813,1735919442003,-500.0,9.866e-05,2]
[347561814,1735919442012,-500.0,9.866e-05,2]
[347561816,1735919442022,-500.0,9.866e-05,2]
[347561818,1735919442031,-500.0,9.866e-05,2]
[347561820,1735919442040,-500.0,9.866e-05,2]
[347561821,1735919442050,-500.0,9.866e-05,2]
[347561823,1735919442059,-500.0,9.866e-05,2]
[347561825,1735919442070,-500.0,9.866e-05,2]
[347561826,1735919442080,-500.0,9.866e-05,2]
[347561827,1735919442090,-1103.91,9.866e-05,2]
[347561828,1735919442099,-567.84,9.866e-05,2]
[347561829,1735919442109,-618.93,9.866e-05,2]
[347561830,1735919442118,-1708.05,9.866e-05,2]
[347561831,1735919442128,-844.94,9.866e-05,2]
[347561832,1735919442137,-500.0,9.866e-05,2]
[347561833,1735919442146,-500.0,9.866e-05,2]
[347561834,1735919442156,-1117.93,9.866e-05,2]
[347561836,1735919442165,-3213.16,9.866e-05,2]
[347561838,1735919442174,-500.0,9.866e-05,2]
[347561839,1735919442184,-500.0,9.866e-05,2]
[347561840,1735919442193,-395.9170766,9.866e-05,2]
[347561841,1735919442203,-500.0,9.866e-05,2]
[347561842,1735919442212,-500.0,9.866e-05,2]
[347561843,1735919442222,-500.0,9.866e-05,2]
[347561844,1735919442230,-500.0,9.866e-05,2]
[347561845,1735919442240,-839.98,9.866e-05,2]
[347561846,1735919442248,-500.0,9.866e-05,2]
[347561847,1735919442257,-500.0,9.866e-05,2]
[347561848,1735919442266,-500.0,9.866e-05,2]
[347561849,1735919442275,-500.0,9.866e-05,2]
[347561850,1735919442283,-500.0,9.866e-05,2]
[347561851,1735919442295,-500.0,9.866e-05,2]
[347561852,1735919442307,-682.48,9.866e-05,2]
[347561853,1735919442317,-485.68045506,9.866e-05,2]
[347561854,1735919442326,-500.0,9.866e-05,2]
[347561855,1735919442335,-500.0,9.866e-05,2]
[347561856,1735919442346,-500.0,9.866e-05,2]
[347561857,1735919442355,-500.0,9.866e-05,2]
[347561858,1735919442363,-500.0,9.866e-05,2]
[347561859,1735919442372,-1341.85,9.866e-05,2]
[347561860,1735919442382,-500.0,9.866e-05,2]
[347561861,1735919442392,-1839.57,9.866e-05,2]
[347561862,1735919442401,-558.15,9.866e-05,2]
[347561863,1735919442410,-500.0,9.866e-05,2]
[347561864,1735919442420,-500.0,9.866e-05,2]
[347561865,1735919442429,-500.0,9.866e-05,2]
[347561866,1735919442440,-712.41,9.866e-05,2]
[347561867,1735919442449,-1970.07,9.866e-05,2]
[347561868,1735919442459,-500.0,9.866e-05,2]
[347561869,1735919442469,-500.0,9.866e-05,2]
[347561870,1735919442477,-793.59,9.866e-05,2]
[347561871,1735919442486,-168.37135757,9.866e-05,2]
[347561872,1735919442495,-1135.87,9.866e-05,2]
[347561873,1735919442505,-323.37220896,9.866e-05,2]
[347561874,1735919442514,-500.0,9.866e-05,2]
[347561875,1735919442523,-916.65,9.866e-05,2]
[347561876,1735919442532,-500.0,9.866e-05,2]
[347561877,1735919442542,-500.0,9.866e-05,2]
[347561878,1735919442553,-500.0,9.866e-05,2]
[347561879,1735919442562,-500.0,9.866e-05,2]
[347561880,1735919442574,-377.75884917,9.866e-05,2]
[347561881,1735919442584,-500.0,9.866e-05,2]
[347561882,1735919442593,-500.0,9.866e-05,2]
[347561883,1735919442602,-500.0,9.866e-05,2]
[347561884,1735919442612,-2628.99,9.866e-05,2]
[347561885,1735919442621,-500.0,9.866e-05,2]
[347561886,1735919442631,-2070.37,9.866e-05,2]
[347561887,1735919442641,-500.0,9.866e-05,2]
[347561888,1735919442650,-741.61,9.866e-05,2]
[347561889,1735919442659,-500.0,9.866e-05,2]
[347561890,1735919442668,-2265.52,9.866e-05,2]
[347561891,1735919442678,-597.93,9.866e-05,2]
[347561892,1735919442687,-500.0,9.866e-05,2]
[347561893,1735919442695,-500.0,9.866e-05,2]
[347561894,1735919442705,-500.0,9.867e-05,2]
[347561895,1735919442714,-500.0,9.867e-05,2]
[347561896,1735919442723,-500.0,9.867e-05,2]
[347561897,1735919442732,-500.0,9.867e-05,2]
[347561898,1735919442741,-500.0,9.867e-05,2]
[347561899,1735919442751,-2098.39,9.867e-05,2]
[347561900,1735919442760,-500.0,9.867e-05,2]
[347561901,1735919442769,-500.0,9.867e-05,2]
[347561903,1735919442778,-1320.51,9.867e-05,2]
[347561905,1735919442788,-500.0,9.867e-05,2]
[347561906,1735919442797,-500.0,9.867e-05,2]
[347561908,1735919442806,-500.0,9.867e-05,2]
[347561909,1735919442817,-4218.15,9.867e-05,2]
[347561910,1735919442826,-500.0,9.867e-05,2]
[347561911,1735919442835,-500.0,9.867e-05,2]
[347561912,1735919442846,-500.0,9.867e-05,2]
[347561913,1735919442855,-500.0,9.867e-05,2]
[347561915,1735919442864,-4190.93,9.867e-05,2]
[347561917,1735919442873,-500.0,9.867e-05,2]
[347561918,1735919442882,-500.0,9.867e-05,2]
[347561920,1735919442892,-500.0,9.867e-05,2]
[347561923,1735919442902,-1247.97,9.867e-05,2]
[347561925,1735919442911,-500.0,9.867e-05,2]
[347561927,1735919442921,-500.0,9.867e-05,2]
[347561929,1735919442930,-711.03,9.867e-05,2]
[347561931,1735919442939,-500.0,9.867e-05,2]
[347561933,1735919442948,-3907.52,9.867e-05,2]
[347561935,1735919442958,-500.0,9.867e-05,2]
[347561937,1735919442967,-500.0,9.867e-05,2]
[347561939,1735919442976,-500.0,9.867e-05,2]
[347561941,1735919442985,-500.0,9.867e-05,2]
[347561943,1735919442995,-500.0,9.867e-05,2]
[347561945,1735919443004,-500.0,9.867e-05,2]
[347561947,1735919443013,-500.0,9.867e-05,2]
[347561948,1735919443023,-335.30804247,9.867e-05,2]
[347561949,1735919443032,-500.0,9.867e-05,2]
[347561950,1735919443042,-500.0,9.867e-05,2]